[Event "Krakow Championship-B 2022"]
[Site "Krakow"]
[Date "2022.06.30"]
[Round "7.1"]
[White "Szczurek, Krzysztof"]
[Black "Stemmler, Fabian"]
[Result "1-0"]
[ECO "B06"]
[WhiteElo "2151"]
[BlackElo "2054"]
[Annotator "RC"]
[PlyCount "107"]
[EventDate "2022.06.25"]
[EventType "swiss"]
[EventCountry "POL"]
[SourceTitle "playchess.com"]
[Source "ChessBase"]
[SourceQuality "1"]
[TimeControl "40/5400+30:1800+30"]

1. e4 {[%emt 0:00:02]} g6 {[%emt 0:00:06]} 2. d4 {[%emt 0:00:06]} Bg7 {[%emt 0:00:07]} 3. Nc3 {[%emt 0:00:10]} d6 {[%emt 0:00:06]} 4. Be3 {[%emt 0:00:18]} a6 {[%emt 0:00:08]} 5. f3 {[%emt 0:00:52]} b5 {[%emt 0:00:48]} 6. Qd2 {[%emt 0:00:14]} Nd7 {[%emt 0:02:18]} 7. g4 {[%emt 0:02:22]} Bb7 {[%emt 0:01:19]} 8. h4 {[%emt 0:01:21]} h5 {[%emt 0:03:56]} 9. g5 {[%emt 0:00:41]} e6 {[%emt 0:03:39]} 10. Bh3 {[%emt 0:04:09]} Ne7 {[%emt 0:04:17]} 11. Nge2 {[%emt 0:02:01]} O-O {[%emt 0:09:24]} 12. O-O-O {[%emt 0:06:01]} d5 {[%emt 0:06:49]} 13. Ng3 {[%emt 0:04:43]} c5 {[%emt 0:10:19]} 14. dxc5 {[%emt 0:07:42]} Ne5 {[%emt 0:01:03]} 15. Qe2 {[%emt 0:09:19]} Nc4 {[%emt 0:10:07]} 16. Bd4 {[%emt 0:00:07]} e5 {[%emt 0:11:23]} 17. Bf2 {[%emt 0:03:03]} Qa5 {[%emt 0:03:02]} 18. a3 {[%emt 0:19:13]} b4 {[%emt 0:10:23]} 19. Na2 {[%emt 0:01:36]} bxa3 {[%emt 0:06:01]} 20. b3 {[%emt 0:00:16]} Nb2 {[%emt 0:00:21]} 21. Rdg1 {[%emt 0:08:43]} d4 {[%emt 0:01:24]} 22. Be1 {[%emt 0:01:03]} Qb5 {[%emt 0:04:50]} 23. Bb4 {[%emt 0:13:50]} d3 {[%emt 0:01:14]} 24. Qd2 {[%emt 0:00:50]} Nc6 {[%emt 0:05:09]} 25. Bxa3 {[%emt 0:01:13]} dxc2 {[%emt 0:00:53]} 26. Kxb2 {[%emt 0:00:38]} Nd4 {[%emt 0:01:52]} 27. Qc3 {[%emt 0:01:23]} Rfb8 {[%emt 0:00:26]} 28. Nc1 {[%emt 0:00:55]} Bc6 {[%emt 0:00:38]} 29. Bf1 {[%emt 0:00:21]} Qb7 {[%emt 0:01:19]} 30. Bc4 {[%emt 0:00:16]} a5 {[%emt 0:00:43]} 31. Ka2 {[%emt 0:01:21]} a4 {[%emt 0:01:02]} 32. b4 {[%emt 0:00:21]} Bf8 {[%emt 0:00:02]} 33. Nce2 {[%emt 0:01:12]} Nb5 {[%emt 0:01:11]} 34. Bxb5 {[%emt 0:00:20]} Qxb5 {[%emt 0:00:08]} 35. Qxc2 {[%emt 0:00:19]} Bd7 {[%emt 0:00:26]} 36. Ka1 {[%emt 0:01:07]} Be6 {[%emt 0:00:17]} 37. Rc1 {[%emt 0:01:00]} Bb3 {[%emt 0:00:19]} 38. Nc3 {[%emt 0:00:51]} Qc4 {[%emt 0:00:48]} 39. Qb2 {[%emt 0:00:28]} Bxc5 {[%emt 0:01:10]} 40. bxc5 {[%emt 0:00:22]} Bd1 41. Nxd1 {[%emt 0:30:16]} Qe6 {[%emt 0:30:52]} 42. Qa2 {[%emt 0:00:18]} Rb3 {[%emt 0:00:30]} 43. c6 {[%emt 0:02:41]} Rc8 {[%emt 0:00:00]} 44. c7 {[%emt 0:00:00]} Qd7 {[%emt 0:00:00]} 45. Nc3 {[%emt 0:00:00]} Qd4 {[%emt 0:00:00]} 46. Nge2 {[%emt 0:00:00]} Qe3 {[%emt 0:00:00]} 47. Nd5 {[%emt 0:00:00]} Qxf3 {[%emt 0:00:00]} 48. Nec3 {[%emt 0:00:00]} Kg7 {[%emt 0:00:00]} 49. Bd6 {[%emt 0:00:00]} Ra8 {[%emt 0:00:00]} 50. Bxe5+ {[%emt 0:00:00]} Kh7 {[%emt 0:00:00]} 51. Rhf1 {[%emt 0:00:00]} Qd3 {[%emt 0:00:00]} 52. Rxf7+ {[%emt 0:00:00]} Kg8 {[%emt 0:00:00]} 53. Rg7+ {[%emt 0:00:00]} Kf8 {[%emt 0:00:00]} 54. Qf2+ {[%emt 0:00:00]} 1-0

[Event "Krakow Championship-B 2022"]
[Site "Krakow"]
[Date "2022.06.30"]
[Round "7.2"]
[White "Khandhar, Kaushal"]
[Black "Skomial, Mateusz"]
[Result "0-1"]
[ECO "D00"]
[WhiteElo "1936"]
[BlackElo "2063"]
[Annotator "RC"]
[PlyCount "144"]
[EventDate "2022.06.25"]
[EventType "swiss"]
[EventCountry "POL"]
[SourceTitle "playchess.com"]
[Source "ChessBase"]
[SourceQuality "1"]
[TimeControl "40/5400+30:1800+30"]

1. d4 {[%emt 0:03:15]} d5 {[%emt 0:00:05]} 2. Bf4 {[%emt 0:00:15]} Nf6 {[%emt 0:00:20]} 3. e3 {[%emt 0:00:12]} e6 {[%emt 0:01:32]} 4. Nf3 {[%emt 0:00:56]} c5 {[%emt 0:01:01]} 5. c3 {[%emt 0:00:07]} Nc6 {[%emt 0:02:39]} 6. Nbd2 {[%emt 0:00:49]} cxd4 {[%emt 0:04:55]} 7. exd4 {[%emt 0:00:11]} Bd6 {[%emt 0:00:39]} 8. Bg3 {[%emt 0:00:38]} Qc7 {[%emt 0:00:26]} 9. Bd3 {[%emt 0:00:34]} O-O {[%emt 0:01:15]} 10. O-O {[%emt 0:00:03]} Bd7 {[%emt 0:07:57]} 11. Re1 {[%emt 0:01:44]} Bxg3 {[%emt 0:01:29]} 12. hxg3 {[%emt 0:00:46]} Qb6 {[%emt 0:00:29]} 13. Rb1 {[%emt 0:02:44]} h6 {[%emt 0:06:00]} 14. Qe2 {[%emt 0:04:17]} Rfe8 {[%emt 0:03:48]} 15. Ne5 {[%emt 0:01:01]} Nxe5 {[%emt 0:00:43]} 16. dxe5 {[%emt 0:00:06]} Nh7 {[%emt 0:00:14]} 17. Nf3 {[%emt 0:00:55]} a6 {[%emt 0:07:28]} 18. Nd4 {[%emt 0:03:12]} Qc5 {[%emt 0:07:28]} 19. g4 {[%emt 0:12:51]} b5 {[%emt 0:05:36]} 20. a3 {[%emt 0:01:51]} Rab8 {[%emt 0:00:27]} 21. Bxh7+ {[%emt 0:20:40]} Kxh7 {[%emt 0:00:14]} 22. g5 {[%emt 0:00:02]} Rh8 {[%emt 0:14:12]} 23. gxh6 {[%emt 0:04:06]} g6 {[%emt 0:00:06]} 24. Qd2 {[%emt 0:08:20]} Qf8 {[%emt 0:00:45]} 25. g3 {[%emt 0:06:31]} Qxh6 {[%emt 0:02:44]} 26. Qxh6+ {[%emt 0:00:09]} Kxh6 {[%emt 0:00:01]} 27. Kg2 {[%emt 0:00:19]} Kg7 {[%emt 0:00:44]} 28. Rh1 {[%emt 0:00:07]} Rxh1 {[%emt 0:01:07]} 29. Rxh1 {[%emt 0:00:07]} a5 {[%emt 0:01:17]} 30. b4 {[%emt 0:02:56]} Rc8 {[%emt 0:07:26]} 31. Rc1 {[%emt 0:01:06]} a4 {[%emt 0:01:46]} 32. f4 {[%emt 0:02:24]} Rh8 {[%emt 0:02:56]} 33. g4 {[%emt 0:02:50]} Rc8 {[%emt 0:00:38]} 34. Kg3 {[%emt 0:01:34]} Rc4 {[%emt 0:01:55]} 35. Kf2 {[%emt 0:03:03]} Rc8 {[%emt 0:00:15]} 36. g5 {[%emt 0:03:34]} Rh8 {[%emt 0:00:33]} 37. Kg3 {[%emt 0:01:28]} Kf8 {[%emt 0:01:44]} 38. Rd1 {[%emt 0:01:02]} Ke7 {[%emt 0:00:17]} 39. Kg2 {[%emt 0:02:57]} Rh4 {[%emt 0:00:09]} 40. Kg3 {[%emt 0:00:06]} Rh8 {[%emt 0:00:05]} 41. Nf3 {[%emt 0:32:22]} Rc8 {[%emt 0:32:55]} 42. Rd3 {[%emt 0:00:02]} Rh8 {[%emt 0:00:11]} 43. Kg2 {[%emt 0:00:39]} Bc6 {[%emt 0:00:16]} 44. Nd4 {[%emt 0:00:17]} Bd7 {[%emt 0:00:22]} 45. Rh3 {[%emt 0:01:16]} Rc8 {[%emt 0:02:28]} 46. Kf2 {[%emt 0:00:26]} Rc4 {[%emt 0:01:19]} 47. Ke2 {[%emt 0:00:06]} Be8 {[%emt 0:01:32]} 48. Kd2 {[%emt 0:00:19]} Rc7 {[%emt 0:04:07]} 49. Rh7 {[%emt 0:03:29]} Rc8 {[%emt 0:00:58]} 50. Rh8 {[%emt 0:01:24]} Rc7 {[%emt 0:00:12]} 51. Kd3 {[%emt 0:01:46]} Rc4 {[%emt 0:00:14]} 52. Rg8 {[%emt 0:01:55]} Rc8 {[%emt 0:02:09]} 53. Kd2 {[%emt 0:00:00]} Rc4 {[%emt 0:00:00]} 54. Rh8 {[%emt 0:00:00]} Rc7 {[%emt 0:00:00]} 55. Nc2 {[%emt 0:00:00]} Rc4 {[%emt 0:00:00]} 56. Rh4 {[%emt 0:00:00]} Bd7 {[%emt 0:00:00]} 57. Ne3 {[%emt 0:00:00]} Re4 {[%emt 0:00:00]} 58. Kd3 {[%emt 0:00:00]} Bc6 {[%emt 0:00:00]} 59. Ng2 {[%emt 0:00:39]} Rc4 {[%emt 0:00:00]} 60. Ne1 {[%emt 0:01:49]} d4 {[%emt 0:00:00]} 61. cxd4 {[%emt 0:00:09]} Rc1 {[%emt 0:00:00]} 62. Kd2 {[%emt 0:00:59]} Ra1 {[%emt 0:00:00]} 63. Rh3 {[%emt 0:01:23]} Be4 {[%emt 0:00:00]} 64. Rc3 {[%emt 0:00:34]} Kd7 {[%emt 0:00:00]} 65. Nd3 {[%emt 0:00:58]} Bxd3 {[%emt 0:00:00]} 66. Kxd3 {[%emt 0:01:00]} Rd1+ {[%emt 0:00:00]} 67. Ke2 {[%emt 0:01:03]} Ra1 {[%emt 0:00:00]} 68. Rc5 {[%emt 0:01:02]} Ra2+ {[%emt 0:00:42]} 69. Ke3 {[%emt 0:00:03]} Rxa3+ {[%emt 0:00:12]} 70. Ke4 {[%emt 0:00:03]} Ra1 {[%emt 0:00:16]} 71. Rxb5 {[%emt 0:00:11]} a3 {[%emt 0:00:15]} 72. Ra5 {[%emt 0:01:58]} a2 0-1

[Event "Krakow Championship-B 2022"]
[Site "Krakow"]
[Date "2022.06.30"]
[Round "7.3"]
[White "Hnatyshyn, Anastasiia"]
[Black "Duncan, Patrick C M"]
[Result "1/2-1/2"]
[ECO "B12"]
[WhiteElo "1890"]
[BlackElo "2013"]
[Annotator "NA RC"]
[PlyCount "65"]
[EventDate "2022.06.25"]
[EventType "swiss"]
[EventCountry "POL"]
[SourceTitle "playchess.com"]
[Source "ChessBase"]
[SourceQuality "1"]
[TimeControl "40/5400+30:1800+30"]

1. e4 {[%emt 0:00:04]} c6 {[%emt 0:00:11]} 2. d4 {[%emt 0:00:08]} d5 {[%emt 0:00:12]} 3. e5 {[%emt 0:00:09]} Bf5 {[%emt 0:00:24]} 4. Nd2 {[%emt 0:00:13]} e6 {[%emt 0:00:50]} 5. Nb3 {[%emt 0:00:25]} Nd7 {[%emt 0:01:25]} 6. Nf3 {[%emt 0:00:14]} Ne7 {[%emt 0:02:32]} 7. Be2 {[%emt 0:00:22]} Nc8 {[%emt 0:02:16]} 8. a4 {[%emt 0:00:46]} Be7 {[%emt 0:02:14]} 9. O-O {[%emt 0:01:00]} O-O {[%emt 0:01:49]} 10. Ne1 {[%emt 0:04:35]} f6 {[%emt 0:08:33]} 11. f4 {[%emt 0:03:50]} fxe5 {[%emt 0:04:39]} 12. fxe5 {[%emt 0:00:17]} Be4 {[%emt 0:10:27]} 13. Nd3 {[%emt 0:08:46]} Bxd3 {[%emt 0:05:52]} 14. Qxd3 {[%emt 0:12:35]} Rxf1+ {[%emt 0:01:28]} 15. Bxf1 {[%emt 0:00:31]} Nf8 {[%emt 0:12:41]} 16. a5 {[%emt 0:08:51]} a6 {[%emt 0:00:46]} 17. Qg3 {[%emt 0:03:46]} Kh8 {[%emt 0:05:33]} 18. Bd3 {[%emt 0:02:06]} Na7 {[%emt 0:03:37]} 19. Be3 {[%emt 0:09:21]} Nb5 {[%emt 0:01:28]} 20. Rf1 {[%emt 0:00:41]} Nc7 {[%emt 0:08:17]} 21. Qh3 {[%emt 0:05:41]} g6 {[%emt 0:01:22]} 22. Bh6 {[%emt 0:08:17]} Kg8 {[%emt 0:02:01]} 23. Qg4 {[%emt 0:00:48]} Qe8 {[%emt 0:02:04]} 24. h4 {[%emt 0:00:49]} Qd8 {[%emt 0:05:27]} 25. h5 {[%emt 0:02:51]} g5 {[%emt 0:05:26]} 26. Nc5 {[%emt 0:01:06]} Bxc5 {[%emt 0:02:52]} 27. dxc5 {[%emt 0:00:13]} Qe7 {[%emt 0:01:44]} 28. Bxg5 {[%emt 0:00:18]} Qg7 {[%emt 0:03:44]} 29. h6 {[%emt 0:00:11]} Qd7 {[%emt 0:00:09]} 30. Be7+ {[%emt 0:01:20]} Ng6 {[%emt 0:00:10]} 31. Bxg6 {[%emt 0:00:08]} Qxe7 {[%emt 0:01:11]} 32. Bf7+ {[%emt 0:00:07]} Kf8 {[%emt 0:00:16]} 33. Qg7# {[%emt 0:00:04]} 1/2-1/2

[Event "Krakow Championship-B 2022"]
[Site "Krakow"]
[Date "2022.06.30"]
[Round "7.4"]
[White "Zamekhovskiy, Yevgen"]
[Black "Malik, Maciej"]
[Result "1/2-1/2"]
[ECO "D70"]
[WhiteElo "1926"]
[BlackElo "1984"]
[Annotator "NA RC"]
[PlyCount "99"]
[EventDate "2022.06.25"]
[EventType "swiss"]
[EventCountry "POL"]
[SourceTitle "playchess.com"]
[Source "ChessBase"]
[SourceQuality "1"]
[TimeControl "40/5400+30:1800+30"]

1. d4 {[%emt 0:00:04]} Nf6 {[%emt 0:00:23]} 2. c4 {[%emt 0:00:20]} g6 {[%emt 0:00:45]} 3. Nf3 {[%emt 0:00:04]} Bg7 {[%emt 0:00:34]} 4. g3 {[%emt 0:00:08]} O-O {[%emt 0:00:38]} 5. Bg2 {[%emt 0:00:04]} d6 {[%emt 0:00:26]} 6. O-O {[%emt 0:00:06]} Nbd7 {[%emt 0:01:41]} 7. Nc3 {[%emt 0:00:08]} c6 {[%emt 0:00:23]} 8. h3 {[%emt 0:00:51]} e5 {[%emt 0:00:35]} 9. e4 {[%emt 0:00:31]} Qc7 {[%emt 0:02:20]} 10. Be3 {[%emt 0:00:45]} Re8 {[%emt 0:00:59]} 11. Qc2 {[%emt 0:01:37]} Nf8 {[%emt 0:09:28]} 12. Rac1 {[%emt 0:08:20]} Nh5 {[%emt 0:04:00]} 13. c5 {[%emt 0:07:34]} exd4 {[%emt 0:02:46]} 14. Nxd4 {[%emt 0:20:40]} dxc5 {[%emt 0:00:58]} 15. Nde2 {[%emt 0:01:15]} Ne6 {[%emt 0:07:54]} 16. Rcd1 {[%emt 0:00:22]} Qe7 {[%emt 0:07:18]} 17. g4 {[%emt 0:11:08]} Nd4 {[%emt 0:04:02]} 18. Qc1 {[%emt 0:03:50]} Nf6 {[%emt 0:08:49]} 19. Nxd4 {[%emt 0:00:54]} cxd4 {[%emt 0:00:02]} 20. Bxd4 {[%emt 0:00:38]} Be6 {[%emt 0:01:36]} 21. f4 {[%emt 0:01:45]} Bc4 {[%emt 0:04:31]} 22. Rfe1 {[%emt 0:06:17]} Nd7 {[%emt 0:03:58]} 23. Qe3 {[%emt 0:03:21]} Bf8 {[%emt 0:02:17]} 24. Qf2 {[%emt 0:04:08]} Nc5 {[%emt 0:01:18]} 25. Bf1 {[%emt 0:04:30]} Bxf1 {[%emt 0:00:46]} 26. Kxf1 {[%emt 0:00:40]} Ne6 {[%emt 0:03:52]} 27. Be3 {[%emt 0:00:38]} Rad8 {[%emt 0:07:08]} 28. f5 {[%emt 0:07:41]} Nc5 {[%emt 0:01:52]} 29. Bd4 {[%emt 0:02:09]} Rxd4 {[%emt 0:07:09]} 30. Qxd4 {[%emt 0:00:17]} Qh4 {[%emt 0:00:25]} 31. Kg2 {[%emt 0:00:33]} Na6 {[%emt 0:00:50]} 32. Rf1 {[%emt 0:02:49]} Nb4 {[%emt 0:01:48]} 33. a3 {[%emt 0:02:31]} c5 {[%emt 0:00:50]} 34. Qf2 {[%emt 0:04:06]} Qxf2+ {[%emt 0:00:25]} 35. Kxf2 {[%emt 0:00:09]} Nc6 {[%emt 0:00:35]} 36. Rd7 {[%emt 0:00:05]} b6 {[%emt 0:00:20]} 37. Nd5 {[%emt 0:01:41]} Kg7 {[%emt 0:00:08]} 38. fxg6 {[%emt 0:00:24]} hxg6 {[%emt 0:00:01]} 39. Ke3 {[%emt 0:01:35]} Ne5 {[%emt 0:00:07]} 40. Rxa7 {[%emt 0:00:13]} Bd6 {[%emt 0:00:11]} 41. Rb7 {[%emt 0:32:59]} Rh8 {[%emt 0:30:06]} 42. Nf4 {[%emt 0:01:02]} Kh6 {[%emt 0:00:57]} 43. Rd1 {[%emt 0:00:00]} Nc4+ {[%emt 0:00:00]} 44. Kf3 {[%emt 0:00:00]} Kg5 {[%emt 0:00:00]} 45. Rxd6 {[%emt 0:00:00]} Nxd6 {[%emt 0:00:00]} 46. Rxb6 {[%emt 0:00:00]} Nc4 {[%emt 0:00:00]} 47. Rb5 {[%emt 0:00:00]} Nd2+ {[%emt 0:00:00]} 48. Ke2 {[%emt 0:00:00]} Nxe4 {[%emt 0:00:00]} 49. Nd3 {[%emt 0:00:18]} Rxh3 {[%emt 0:00:00]} 50. Nxc5 {[%emt 0:01:10]} 1/2-1/2

[Event "Krakow Championship-B 2022"]
[Site "Krakow"]
[Date "2022.06.30"]
[Round "7.5"]
[White "Maciejewski, Kamil"]
[Black "Garsky, Vladyslav"]
[Result "0-1"]
[ECO "A04"]
[WhiteElo "1939"]
[BlackElo "1860"]
[Annotator "NA RC"]
[PlyCount "158"]
[EventDate "2022.06.25"]
[EventType "swiss"]
[EventCountry "POL"]
[SourceTitle "playchess.com"]
[Source "ChessBase"]
[SourceQuality "1"]
[TimeControl "40/5400+30:1800+30"]

1. Nf3 {[%emt 0:00:03]} c5 {[%emt 0:00:06]} 2. g3 {[%emt 0:00:06]} Nc6 {[%emt 0:00:16]} 3. Bg2 {[%emt 0:00:06]} e5 {[%emt 0:00:06]} 4. c4 {[%emt 0:00:13]} g6 {[%emt 0:01:36]} 5. Nc3 {[%emt 0:00:19]} Bg7 {[%emt 0:00:13]} 6. O-O {[%emt 0:00:19]} Nge7 {[%emt 0:01:42]} 7. Ne1 {[%emt 0:01:33]} d6 {[%emt 0:01:16]} 8. Nc2 {[%emt 0:00:11]} O-O {[%emt 0:00:27]} 9. Ne3 {[%emt 0:00:25]} f5 {[%emt 0:01:01]} 10. d3 {[%emt 0:04:54]} f4 {[%emt 0:08:19]} 11. Ned5 {[%emt 0:00:36]} Nxd5 {[%emt 0:00:12]} 12. Nxd5 {[%emt 0:05:28]} Bh6 {[%emt 0:05:09]} 13. e3 {[%emt 0:11:17]} fxg3 {[%emt 0:01:18]} 14. fxg3 {[%emt 0:03:55]} Be6 {[%emt 0:02:36]} 15. Rxf8+ {[%emt 0:04:05]} Bxf8 {[%emt 0:00:34]} 16. Bd2 {[%emt 0:07:00]} Bg7 {[%emt 0:02:51]} 17. Qf3 {[%emt 0:11:59]} Qd7 {[%emt 0:04:40]} 18. Rf1 {[%emt 0:10:15]} Bf5 {[%emt 0:02:52]} 19. e4 {[%emt 0:07:17]} Bg4 {[%emt 0:01:52]} 20. Nf6+ {[%emt 0:02:18]} Bxf6 {[%emt 0:00:20]} 21. Qxf6 {[%emt 0:00:07]} Qe7 {[%emt 0:00:33]} 22. Bg5 {[%emt 0:07:28]} Qxf6 {[%emt 0:02:20]} 23. Rxf6 {[%emt 0:00:07]} Rd8 {[%emt 0:00:16]} 24. h3 {[%emt 0:03:16]} Bc8 {[%emt 0:00:56]} 25. a3 {[%emt 0:01:47]} Kg7 {[%emt 0:00:19]} 26. Rf2 {[%emt 0:00:52]} Re8 {[%emt 0:00:29]} 27. Bf1 {[%emt 0:02:34]} a6 {[%emt 0:01:41]} 28. Bd2 {[%emt 0:01:39]} Be6 {[%emt 0:00:53]} 29. b4 {[%emt 0:01:07]} b5 {[%emt 0:02:47]} 30. Bc3 {[%emt 0:00:52]} Rb8 {[%emt 0:01:11]} 31. Rb2 {[%emt 0:00:57]} Kf6 {[%emt 0:01:04]} 32. Kg2 {[%emt 0:03:05]} Nd4 {[%emt 0:01:32]} 33. Rf2+ {[%emt 0:02:48]} Ke7 {[%emt 0:01:06]} 34. Bd2 {[%emt 0:01:30]} Bd7 {[%emt 0:02:36]} 35. Bg5+ {[%emt 0:00:49]} Ke8 {[%emt 0:00:35]} 36. Bh6 {[%emt 0:01:20]} Ke7 {[%emt 0:01:27]} 37. Bg5+ {[%emt 0:00:04]} Ke8 {[%emt 0:00:05]} 38. Bh6 {[%emt 0:00:33]} Ne6 {[%emt 0:01:59]} 39. Rb2 {[%emt 0:05:29]} Bc6 {[%emt 0:02:05]} 40. Kf3 {[%emt 0:01:14]} Nd4+ {[%emt 0:03:30]} 41. Ke3 {[%emt 0:09:58]} bxc4 {[%emt 0:00:00]} 42. dxc4 {[%emt 0:00:51]} cxb4 {[%emt 0:00:00]} 43. axb4 {[%emt 0:00:52]} Rxb4 {[%emt 0:00:00]} 44. Rxb4 {[%emt 0:03:31]} Nc2+ {[%emt 0:00:26]} 45. Kd3 {[%emt 0:01:12]} Nxb4+ {[%emt 0:00:05]} 46. Kc3 {[%emt 0:00:30]} a5 {[%emt 0:00:07]} 47. c5 {[%emt 0:04:57]} dxc5 {[%emt 0:03:50]} 48. Bg7 {[%emt 0:03:14]} Bxe4 {[%emt 0:01:12]} 49. Bxe5 {[%emt 0:00:48]} Nd5+ {[%emt 0:02:00]} 50. Kb3 {[%emt 0:00:01]} Ne3 {[%emt 0:02:59]} 51. Bb5+ {[%emt 0:00:07]} Ke7 {[%emt 0:00:27]} 52. Bc7 {[%emt 0:01:17]} Bc2+ {[%emt 0:00:54]} 53. Kb2 {[%emt 0:01:20]} Bf5 {[%emt 0:00:03]} 54. Bxa5 {[%emt 0:04:06]} Bxh3 {[%emt 0:00:15]} 55. Be1 {[%emt 0:02:03]} Kd6 {[%emt 0:01:01]} 56. Kc3 {[%emt 0:00:37]} Bf1 {[%emt 0:01:42]} 57. Be8 {[%emt 0:00:36]} Nd5+ {[%emt 0:00:08]} 58. Kc2 {[%emt 0:00:45]} c4 {[%emt 0:00:16]} 59. Bf7 {[%emt 0:01:09]} Bd3+ {[%emt 0:00:16]} 60. Kd2 {[%emt 0:01:05]} Ke5 {[%emt 0:00:42]} 61. Bf2 {[%emt 0:01:14]} Ke4 {[%emt 0:00:16]} 62. Bg8 {[%emt 0:00:29]} Nf6 {[%emt 0:00:20]} 63. Be6 {[%emt 0:00:37]} Kf3 {[%emt 0:00:06]} 64. Be1 {[%emt 0:00:40]} Ne4+ {[%emt 0:00:06]} 65. Kc1 {[%emt 0:00:17]} Nxg3 {[%emt 0:00:14]} 66. Bg8 {[%emt 0:00:37]} h5 {[%emt 0:00:13]} 67. Bd5+ {[%emt 0:00:15]} Ne4 {[%emt 0:00:09]} 68. Bf7 {[%emt 0:00:43]} Nd6 {[%emt 0:00:10]} 69. Bd5+ {[%emt 0:00:26]} Be4 {[%emt 0:00:05]} 70. Be6 {[%emt 0:00:15]} Bd3 {[%emt 0:01:46]} 71. Bd5+ {[%emt 0:00:52]} Kg4 {[%emt 0:00:27]} 72. Be6+ {[%emt 0:00:34]} Nf5 {[%emt 0:00:11]} 73. Kd2 {[%emt 0:00:31]} h4 {[%emt 0:00:15]} 74. Bd5 {[%emt 0:00:29]} h3 {[%emt 0:00:16]} 75. Bf2 {[%emt 0:00:32]} h2 {[%emt 0:00:13]} 76. Bb6 {[%emt 0:00:31]} Ng3 {[%emt 0:00:21]} 77. Be6+ {[%emt 0:00:27]} Bf5 {[%emt 0:00:13]} 78. Bd5 {[%emt 0:00:24]} Be4 {[%emt 0:00:06]} 79. Be6+ {[%emt 0:00:21]} Nf5 {[%emt 0:00:09]} 0-1

[Event "Krakow Championship-B 2022"]
[Site "Krakow"]
[Date "2022.06.30"]
[Round "7.6"]
[White "Cichon, Jakub"]
[Black "Owoc, Jakub"]
[Result "1-0"]
[ECO "B19"]
[WhiteElo "1884"]
[BlackElo "1741"]
[Annotator "NA RC"]
[PlyCount "65"]
[EventDate "2022.06.25"]
[EventType "swiss"]
[EventCountry "POL"]
[SourceTitle "playchess.com"]
[Source "ChessBase"]
[SourceQuality "1"]
[TimeControl "40/5400+30:1800+30"]

1. e4 {[%emt 0:00:35]} c6 {[%emt 0:00:05]} 2. d4 {[%emt 0:00:04]} d5 {[%emt 0:00:05]} 3. Nc3 {[%emt 0:00:05]} dxe4 {[%emt 0:00:05]} 4. Nxe4 {[%emt 0:00:05]} Bf5 {[%emt 0:00:02]} 5. Ng3 {[%emt 0:00:07]} Bg6 {[%emt 0:00:07]} 6. Nf3 {[%emt 0:00:06]} Nd7 {[%emt 0:00:06]} 7. h4 {[%emt 0:00:05]} h6 {[%emt 0:00:05]} 8. h5 {[%emt 0:00:03]} Bh7 {[%emt 0:00:06]} 9. Bd3 {[%emt 0:00:04]} Bxd3 {[%emt 0:00:06]} 10. Qxd3 {[%emt 0:00:04]} e6 {[%emt 0:00:06]} 11. Bd2 {[%emt 0:00:07]} Ngf6 {[%emt 0:00:07]} 12. O-O-O {[%emt 0:00:28]} Be7 {[%emt 0:00:04]} 13. Kb1 {[%emt 0:00:41]} Qb6 {[%emt 0:00:05]} 14. c4 {[%emt 0:11:30]} O-O {[%emt 0:00:06]} 15. Rhe1 {[%emt 0:20:31]} Rfe8 {[%emt 0:03:30]} 16. Ne4 {[%emt 0:19:06]} Rad8 {[%emt 0:11:42]} 17. g3 {[%emt 0:11:59]} c5 {[%emt 0:15:03]} 18. Be3 {[%emt 0:03:32]} cxd4 {[%emt 0:06:52]} 19. Bxd4 {[%emt 0:04:22]} Qa5 {[%emt 0:05:36]} 20. Qb3 {[%emt 0:05:25]} Nxe4 {[%emt 0:04:23]} 21. Rxe4 {[%emt 0:00:15]} Qf5 {[%emt 0:00:05]} 22. Rde1 {[%emt 0:05:42]} e5 {[%emt 0:00:38]} 23. g4 {[%emt 0:01:19]} Qh7 {[%emt 0:00:05]} 24. Qc2 {[%emt 0:03:11]} Bb4 {[%emt 0:14:47]} 25. R1e2 {[%emt 0:01:21]} f6 {[%emt 0:00:41]} 26. c5 {[%emt 0:02:03]} Rc8 {[%emt 0:10:52]} 27. Nh4 {[%emt 0:02:25]} Nf8 {[%emt 0:13:48]} 28. Qc4+ {[%emt 0:00:35]} Re6 {[%emt 0:00:53]} 29. Ng6 {[%emt 0:04:37]} Rce8 {[%emt 0:05:21]} 30. f4 {[%emt 0:01:06]} Ba5 {[%emt 0:04:22]} 31. f5 {[%emt 0:00:25]} Bc7 {[%emt 0:01:05]} 32. Bc3 {[%emt 0:01:19]} b5 {[%emt 0:00:26]} 33. cxb6 {[%emt 0:00:24]} 1-0